bitfinex/quotes_BTCUSD_20220207
["timestamp","ask_amount","ask_price","bid_price","bid_amount"]
[1644196681419,0.330142,41875.0,41874.0,0.0006844]
[1644196681618,0.330142,41875.0,41873.0,0.00317665]
[1644196681818,0.330142,41875.0,41873.0,0.003]
[1644196686671,0.22920453,41877.0,41873.0,0.003]
[1644196686672,0.169469,41877.0,41873.0,0.003]
[1644196687117,0.169469,41877.0,41873.0,0.00317665]
[1644196688015,0.169469,41877.0,41873.0,0.00345424]
[1644196688315,0.059734,41877.0,41873.0,0.00345424]
[1644196688915,0.059734,41877.0,41873.0,0.003]
[1644196689115,0.059734,41877.0,41873.0,0.00345601]
[1644196689518,0.059723,41882.0,41873.0,0.05345601]
[1644196689719,0.00045588,41884.0,41873.0,0.00345601]
[1644196689919,0.00045588,41884.0,41879.0,0.05]
[1644196690118,0.13766057,41886.0,41879.0,0.05]
[1644196690517,0.0004559,41884.0,41879.0,0.05]
[1644196690968,0.0004559,41884.0,41878.0,0.26553524]
[1644196691370,0.31382196,41885.0,41878.0,0.26553524]
[1644196691567,0.0004559,41884.0,41878.0,0.0479]
[1644196692566,0.31382196,41885.0,41878.0,0.26347564]
[1644196692868,0.00045572,41884.0,41878.0,0.26347564]
[1644196693673,0.25410696,41885.0,41878.0,0.26347564]
[1644196694070,0.00045572,41884.0,41878.0,0.26347564]
[1644196694928,0.25410696,41885.0,41878.0,0.26347564]
[1644196695326,0.00045572,41884.0,41878.0,0.26347564]
[1644196696125,0.31382296,41885.0,41878.0,0.26347564]
[1644196696727,0.00045574,41884.0,41878.0,0.26347564]
[1644196697127,0.00045574,41884.0,41879.0,0.05]
[1644196697327,0.109716,41885.0,41880.0,0.30388334]
[1644196697528,0.0186523,41887.0,41881.0,0.0479]
[1644196697728,0.00014262,41884.0,41881.0,0.0479]
[1644196697930,0.00014262,41884.0,41882.0,0.380142]
[1644196698179,0.00014262,41884.0,41883.0,0.99816267]
[1644196698681,0.02167585,41890.0,41883.0,1.04816267]
[1644196698880,0.00047347,41886.0,41884.0,0.330142]
[1644196699082,0.00047347,41886.0,41885.0,0.70948737]
[1644196699280,0.00047347,41886.0,41885.0,0.90948737]
[1644196699581,0.00047347,41886.0,41885.0,1.29718935]
[1644196699779,0.02167585,41890.0,41885.0,1.17384119]
[1644196699981,0.01975676,41892.0,41886.0,0.330142]
[1644196700179,0.00051929,41888.0,41887.0,0.0479]
[1644196700380,0.00051929,41888.0,41887.0,0.69803346]
[1644196701179,0.01975676,41892.0,41889.0,0.05]
[1644196701390,0.01946939,41892.0,41891.0,0.330142]
[1644196701586,0.01946939,41892.0,41891.0,0.378042]
[1644196702232,0.06946939,41892.0,41891.0,0.378042]
[1644196702434,0.05,41892.0,41891.0,0.378042]
[1644196703235,0.05,41892.0,41891.0,0.0479]
[1644196703435,0.380142,41892.0,41891.0,0.0479]
[1644196703635,0.059712,41891.0,41884.0,0.05]
[1644196704436,0.1988015,41890.0,41884.0,0.05]
[1644196705035,0.05971,41888.0,41884.0,0.05]
[1644196706068,0.05,41885.0,41879.0,0.20465682]
[1644196706268,0.05,41885.0,41876.0,0.25649686]
[1644196706269,0.05,41881.0,41876.0,0.00067032]
[1644196706468,0.05,41877.0,41876.0,0.00049367]
[1644196706969,0.24555486,41877.0,41876.0,0.00049367]
[1644196707166,0.24555486,41877.0,41874.0,0.00017665]
[1644196707167,0.57569686,41877.0,41874.0,0.00017665]
[1644196707370,0.234576,41875.0,41874.0,0.00049815]
[1644196707566,0.54891769,41875.0,41874.0,0.0006748]
[1644196707766,0.54891769,41875.0,41874.0,0.00049815]
[1644196707966,0.234576,41875.0,41874.0,0.00049815]
[1644196708166,0.54397359,41875.0,41874.0,0.00049815]
[1644196708367,0.54397359,41875.0,41873.0,0.00317665]
[1644196708568,0.234576,41875.0,41873.0,0.003]
[1644196708766,0.24555486,41877.0,41873.0,0.003]
[1644196708767,0.380142,41874.0,41873.0,0.003]
[1644196710617,0.24555486,41877.0,41873.0,0.003]
[1644196710817,0.330142,41876.0,41873.0,0.003]
[1644196711015,0.05,41874.0,41873.0,0.003]
[1644196711616,0.380142,41874.0,41873.0,0.003]
[1644196717931,0.330142,41874.0,41873.0,0.003]
[1644196718131,0.19555486,41877.0,41873.0,0.003]
[1644196718732,0.19555486,41877.0,41874.0,0.23868325]
[1644196719031,0.8573406,41880.0,41874.0,0.56678073]
[1644196719233,0.20464918,41884.0,41874.0,0.56678073]
[1644196719234,0.12790709,41886.0,41876.0,0.05]
[1644196719433,0.00047177,41884.0,41876.0,0.05]
[1644196719733,0.00047177,41884.0,41877.0,0.378042]
[1644196720132,0.00047177,41884.0,41877.0,0.57350689]
[1644196720333,0.06819009,41886.0,41877.0,0.57350689]
[1644196720665,0.00047182,41884.0,41877.0,0.57350689]
[1644196721472,0.05,41886.0,41877.0,0.57350689]
[1644196721970,0.00047186,41884.0,41881.0,0.23268511]
[1644196722768,0.05,41886.0,41881.0,0.23268511]
[1644196722769,0.05,41886.0,41881.0,0.28058511]
[1644196722969,0.00047187,41885.0,41881.0,0.28058511]
[1644196723972,0.31598515,41887.0,41881.0,0.28058511]
[1644196724171,0.00047187,41885.0,41881.0,0.28058511]
[1644196725217,0.059715,41885.0,41881.0,0.28058511]
[1644196725414,0.06018686,41885.0,41881.0,0.28058511]
[1644196726315,0.06018686,41885.0,41881.0,0.0479]
[1644196726316,0.059715,41885.0,41881.0,0.0479]
[1644196726616,0.06018686,41885.0,41881.0,0.0479]
[1644196726816,0.00047186,41885.0,41879.0,0.05]
[1644196727015,0.00047186,41885.0,41880.0,0.0479]
[1644196727215,0.00047186,41885.0,41880.0,0.0050264]
[1644196727415,0.00047186,41885.0,41881.0,0.25631076]
[1644196727617,0.059713,41886.0,41882.0,0.0479]
[1644196727821,0.37569615,41887.0,41882.0,0.0479]
[1644196727822,0.00047186,41885.0,41882.0,0.0479]
[1644196728021,0.00047186,41885.0,41884.0,0.05]
[1644196728273,0.00047186,41885.0,41884.0,0.428042]
[1644196728671,0.01947676,41890.0,41884.0,0.428042]
[1644196728873,0.01947676,41890.0,41888.0,0.05]
[1644196729073,0.01947676,41890.0,41889.0,0.0479]
[1644196730773,0.059706,41891.0,41889.0,0.0479]
[1644196730978,0.05,41890.0,41889.0,0.0479]
[1644196731177,0.380142,41890.0,41889.0,0.0479]
[1644196731578,0.059717,41888.0,41882.0,0.0479]
[1644196731776,0.059717,41887.0,41882.0,0.0479]
[1644196732016,0.2275065,41884.0,41882.0,0.0479]
[1644196732215,0.2275065,41884.0,41879.0,0.05]
[1644196732426,0.2275065,41884.0,41874.0,0.00017665]
[1644196732427,0.05,41880.0,41874.0,0.00017665]
[1644196732616,0.05,41880.0,41873.0,0.63525682]
[1644196732617,0.05,41880.0,41876.0,0.00049733]
[1644196733218,1.92340129,41877.0,41876.0,0.00049733]
[1644196733616,1.92340129,41877.0,41874.0,0.00017665]
[1644196733816,1.92340129,41877.0,41874.0,0.00049733]
[1644196733817,0.26325125,41876.0,41874.0,0.00049733]
[1644196734017,0.26325125,41876.0,41874.0,0.00067398]
[1644196734216,0.26325125,41876.0,41874.0,0.00049733]
[1644196734816,0.26325125,41876.0,41873.0,0.00317665]
[1644196735016,0.26325125,41876.0,41873.0,0.00349734]
[1644196735870,0.26325125,41876.0,41873.0,0.003]
[1644196736269,0.26325125,41876.0,41873.0,0.00317665]
[1644196736870,0.26296386,41876.0,41873.0,0.00317665]
[1644196737269,0.26296386,41876.0,41873.0,0.003]
[1644196737469,0.26296386,41876.0,41873.0,0.00317665]
[1644196738474,0.26296386,41876.0,41873.0,0.003]
[1644196738672,0.26296386,41876.0,41873.0,0.00317665]
[1644196739715,0.26296386,41876.0,41873.0,0.003]
[1644196739917,0.26296386,41876.0,41873.0,0.00317665]
[1644196740816,0.31286846,41876.0,41873.0,0.00317665]
[1644196741022,0.31286846,41876.0,41873.0,0.003]
[1644196741219,0.31286846,41876.0,41873.0,0.00317665]
[1644196741621,0.330142,41875.0,41873.0,0.00317665]
[1644196741822,0.330142,41875.0,41873.0,0.003]
[1644196741823,0.234576,41874.0,41873.0,0.003]
[1644196742022,0.53546885,41874.0,41873.0,0.003]
[1644196742226,0.58546885,41874.0,41873.0,0.003]
[1644196742621,0.53546885,41874.0,41873.0,0.003]
[1644196742922,0.58546885,41874.0,41873.0,0.003]
[1644196743575,0.53546885,41874.0,41873.0,0.003]
[1644196743773,0.234576,41874.0,41873.0,0.003]
[1644196743972,0.284576,41874.0,41873.0,0.003]
[1644196744573,0.234576,41874.0,41873.0,0.003]
[1644196745776,0.2844806,41874.0,41873.0,0.003]
[1644196745974,0.234576,41874.0,41873.0,0.003]
[1644196746179,0.059732,41872.0,41864.0,0.05]
[1644196746376,0.059732,41872.0,41871.0,0.00018103]
[1644196746574,0.059732,41872.0,41866.0,0.05]
[1644196746776,0.059732,41872.0,41864.0,0.05]
[1644196747018,0.0499046,41871.0,41864.0,0.00018103]
[1644196747218,0.21156211,41869.0,41863.0,0.045]
[1644196747420,0.21156211,41869.0,41864.0,0.330142]
[1644196747617,0.21156211,41869.0,41864.0,0.33032303]
[1644196749017,0.21156211,41869.0,41866.0,0.045]
[1644196749220,0.21156211,41869.0,41867.0,0.330142]
[1644196749520,0.21156211,41869.0,41866.0,0.04518103]
[1644196749718,0.21156211,41869.0,41866.0,0.045]
[1644196750777,0.21156211,41869.0,41866.0,0.04518103]
[1644196751678,0.21156211,41869.0,41866.0,0.045]
[1644196751879,0.21156211,41869.0,41866.0,0.04518103]
[1644196752978,0.21156211,41869.0,41866.0,0.045]
[1644196753178,0.21156211,41869.0,41866.0,0.04518103]
[1644196754279,0.21156211,41869.0,41866.0,0.045]
[1644196754519,0.21156211,41869.0,41866.0,0.04518103]
[1644196755120,0.21127469,41869.0,41866.0,0.04518103]
[1644196755319,0.21127469,41869.0,41866.0,0.045]
[1644196755520,0.19863169,41869.0,41866.0,0.04518103]
[1644196756529,0.19863169,41869.0,41866.0,0.045]
[1644196756723,0.19863169,41869.0,41866.0,0.00018103]
[1644196757024,0.19863169,41869.0,41865.0,0.00052904]
[1644196757224,0.19863169,41869.0,41865.0,0.00010836]
[1644196757625,0.19863169,41869.0,41862.0,0.00018103]
[1644196757626,0.0499046,41867.0,41862.0,0.00018103]
[1644196757826,0.0499046,41867.0,41861.0,0.01]
[1644196757827,0.0499046,41867.0,41864.0,0.00018103]
[1644196758024,0.19863169,41869.0,41861.0,0.01]
[1644196758025,0.19863169,41869.0,41861.0,0.01018103]
[1644196758275,0.19863169,41869.0,41861.0,0.01]
[1644196758475,0.19863169,41869.0,41862.0,0.56695187]
[1644196758674,0.19863169,41869.0,41863.0,0.330142]
[1644196758875,0.19863169,41869.0,41863.0,0.33067106]
[1644196759090,0.19863169,41869.0,41863.0,0.33085209]
[1644196759277,0.19863169,41869.0,41866.0,0.330142]
[1644196759476,0.19863169,41869.0,41864.0,0.04518103]
[1644196759678,0.00052895,41872.0,41865.0,0.330142]
[1644196759878,0.02176652,41878.0,41869.0,0.04018103]
[1644196760078,0.02176652,41878.0,41870.0,0.04018103]
[1644196760280,0.00052895,41872.0,41870.0,0.04018103]
[1644196760477,0.00052895,41872.0,41871.0,0.330142]
[1644196761077,0.24723193,41878.0,41871.0,0.330142]
[1644196761278,0.24723193,41878.0,41869.0,0.31678776]
[1644196761477,0.00052895,41874.0,41872.0,0.04018103]
[1644196761932,0.00052895,41874.0,41869.0,0.09018103]
[1644196762123,0.00052895,41874.0,41870.0,0.37032303]
[1644196762324,0.24723193,41878.0,41871.0,0.330142]
[1644196762623,0.00052895,41874.0,41870.0,0.04018103]
[1644196762823,0.00052895,41874.0,41871.0,0.330142]
[1644196763624,0.24723193,41878.0,41871.0,0.330142]
[1644196763825,0.24723193,41878.0,41869.0,0.26677107]
[1644196763826,0.00052894,41875.0,41869.0,0.26677107]
[1644196764024,0.00052894,41875.0,41867.0,0.330142]
[1644196764724,0.0499046,41876.0,41867.0,0.330142]
[1644196764924,0.00052895,41873.0,41869.0,0.04018103]
[1644196765126,0.00052895,41873.0,41870.0,0.330142]
[1644196765525,0.00052895,41873.0,41870.0,0.33032303]
[1644196765975,0.0499046,41876.0,41870.0,0.33032303]
[1644196766178,0.00052895,41874.0,41870.0,0.00018103]
[1644196766375,0.00052895,41874.0,41869.0,0.04018103]
[1644196767178,0.0499046,41876.0,41869.0,0.04018103]
[1644196767376,0.00052895,41874.0,41869.0,0.04018103]
[1644196768378,0.0499046,41876.0,41869.0,0.04018103]
[1644196768578,0.00052895,41874.0,41869.0,0.04018103]
[1644196769178,0.00052895,41874.0,41868.0,0.04018103]
[1644196769425,0.00052895,41874.0,41869.0,0.59147792]
[1644196769426,0.0499046,41873.0,41869.0,0.59147792]
[1644196769817,0.00052895,41873.0,41869.0,0.63183998]
[1644196770019,0.00052895,41873.0,41872.0,0.1918059]
[1644196770318,0.00052895,41873.0,41872.0,0.5219479]
[1644196770719,0.24723193,41878.0,41872.0,0.1918059]
[1644196771119,0.00052894,41875.0,41872.0,0.1918059]
[1644196771321,0.00052894,41875.0,41869.0,0.26151695]
[1644196771521,0.00052894,41875.0,41869.0,0.26133592]
[1644196771923,0.24723193,41878.0,41869.0,0.31133592]
[1644196772123,0.24723193,41878.0,41870.0,0.04018103]
[1644196772325,0.24723193,41878.0,41869.0,0.00018103]
[1644196772326,0.00052895,41874.0,41869.0,0.00018103]
[1644196772522,0.00052895,41874.0,41870.0,0.330142]
[1644196772921,0.0499046,41872.0,41870.0,0.330142]
[1644196773169,0.0499046,41872.0,41869.0,0.00018103]
[1644196773170,0.0499046,41872.0,41869.0,0.330142]
[1644196773372,0.24723193,41878.0,41869.0,0.330142]
[1644196773373,0.05043355,41874.0,41869.0,0.330142]
[1644196773573,0.05014609,41874.0,41869.0,0.330142]
[1644196773773,0.00052895,41874.0,41871.0,0.00038286]
[1644196773974,0.00052895,41874.0,41873.0,0.04018103]
[1644196774172,0.00052895,41874.0,41873.0,0.69854099]
[1644196774372,0.05,41881.0,41873.0,0.69854099]
[1644196774575,0.2047139,41882.0,41875.0,0.00038286]
[1644196774773,0.00045572,41876.0,41875.0,0.00038286]
[1644196774972,0.00045572,41876.0,41875.0,0.31995507]
[1644196775172,0.00045572,41876.0,41875.0,0.65009707]
[1644196775571,0.04961714,41881.0,41875.0,0.65009707]
[1644196775772,0.04961714,41881.0,41875.0,0.31995507]
[1644196775974,0.00045572,41878.0,41877.0,0.04018103]
[1644196776173,0.00045572,41878.0,41877.0,0.40152542]
[1644196776774,21.41390951,41888.0,41877.0,0.40152542]
[1644196776775,0.2047139,41886.0,41877.0,0.40152542]
[1644196777025,0.25475957,41885.0,41880.0,0.00038286]
[1644196777327,0.25475957,41885.0,41881.0,0.0479]
[1644196778323,0.25521529,41885.0,41881.0,0.0479]
[1644196778926,0.04961714,41882.0,41881.0,0.0479]
[1644196781873,0.37975914,41882.0,41881.0,0.0479]
[1644196783174,0.37975914,41882.0,41872.0,0.25264711]
[1644196783374,0.119444,41883.0,41870.0,0.330011]
[1644196783375,0.04961714,41875.0,41870.0,0.330011]
[1644196783573,0.04961714,41875.0,41870.0,0.00018103]
[1644196783772,0.04961714,41875.0,41869.0,0.00018103]
[1644196783974,0.04961714,41875.0,41870.0,0.00018103]
[1644196784172,0.04961714,41875.0,41868.0,0.01877227]
[1644196784173,0.24871818,41875.0,41868.0,0.01877227]
[1644196784433,0.24919076,41875.0,41868.0,0.01877227]
[1644196784622,0.00047258,41875.0,41871.0,0.00038286]
[1644196784823,0.00047258,41875.0,41871.0,0.30062343]
[1644196785026,0.00047258,41875.0,41874.0,0.00038286]
[1644196785224,0.25433104,41882.0,41874.0,0.04056389]
[1644196785225,0.04961714,41882.0,41874.0,0.04056389]
[1644196785432,0.00189005,41881.0,41875.0,0.27032497]
[1644196786525,0.19087934,41884.0,41879.0,0.00038286]
[1644196786724,0.00047401,41880.0,41879.0,0.00038286]
[1644196787224,0.00047401,41880.0,41878.0,0.2675889]
[1644196787428,0.00047401,41880.0,41877.0,0.0479]
[1644196787629,0.2047139,41886.0,41877.0,0.0479]
[1644196787827,20.9902,41888.0,41877.0,0.0479]
[1644196787828,0.00047401,41881.0,41877.0,0.0479]
[1644196788271,0.00047401,41881.0,41877.0,0.23877154]
[1644196788471,0.00047401,41881.0,41878.0,0.26271043]
[1644196788872,0.19450076,41886.0,41878.0,0.26271043]
[1644196789071,0.00047401,41882.0,41878.0,0.26271043]
[1644196790074,0.05,41885.0,41878.0,0.4907631]
[1644196790280,0.00047368,41882.0,41878.0,0.22805267]
[1644196791273,0.05,41885.0,41878.0,0.22805267]
[1644196791475,0.00047368,41882.0,41878.0,0.22805267]
[1644196791673,0.00047368,41882.0,41878.0,0.49238862]
[1644196791927,0.00018625,41882.0,41878.0,0.49238862]
[1644196792521,0.05,41885.0,41878.0,0.49238862]
[1644196792721,0.25421176,41886.0,41878.0,0.22805267]
[1644196793122,0.05,41885.0,41878.0,0.22805267]
[1644196793323,0.19450076,41886.0,41878.0,0.22805267]
[1644196793623,0.19450076,41886.0,41878.0,0.48967432]
[1644196793823,0.00014234,41884.0,41878.0,0.53967432]
[1644196794426,0.05,41881.0,41878.0,0.48967432]
[1644196794623,0.05,41881.0,41878.0,0.22805267]
[1644196794823,0.05,41884.0,41878.0,0.49048053]
[1644196795022,0.05,41884.0,41878.0,0.22805267]
[1644196795222,0.05,41884.0,41878.0,0.48995547]
[1644196795223,0.05014233,41884.0,41878.0,0.48995547]
[1644196795427,0.05972,41882.0,41878.0,0.48995547]
[1644196795673,0.059719,41883.0,41878.0,0.48995547]
[1644196796074,0.19450076,41886.0,41878.0,0.48995547]
[1644196796375,0.00047374,41884.0,41878.0,0.48995547]
[1644196796981,0.00047374,41884.0,41880.0,0.08937216]
[1644196797280,0.00025608,41887.0,41881.0,0.58082743]
[1644196797476,0.00050813,41884.0,41883.0,0.059692]
[1644196797677,0.00050813,41884.0,41883.0,0.40344268]
[1644196797876,0.00050813,41884.0,41883.0,0.74544699]
[1644196798079,0.00050813,41884.0,41883.0,1.10123018]
[1644196798477,0.00025608,41887.0,41883.0,1.10123018]
[1644196798677,20.9902,41888.0,41884.0,0.20424347]
[1644196798678,0.00050812,41886.0,41884.0,0.20424347]
[1644196798876,0.00050812,41886.0,41885.0,0.34138612]
[1644196799078,0.00050812,41886.0,41885.0,0.39138612]
[1644196799278,0.00050812,41886.0,41885.0,0.49138612]
[1644196799726,20.99045608,41888.0,41885.0,0.49138612]
[1644196799928,20.99070811,41888.0,41885.0,0.49138612]
[1644196800225,20.99070811,41888.0,41885.0,0.39138612]
[1644196800428,21.25881673,41888.0,41885.0,0.49138612]
[1644196800629,21.25881673,41888.0,41885.0,0.13557825]
[1644196800826,21.25830862,41888.0,41885.0,0.13557825]
[1644196801330,20.9902,41888.0,41885.0,0.03557825]
[1644196802530,20.9902,41888.0,41886.0,0.119379]
[1644196802731,20.9902,41888.0,41887.0,0.0979]
[1644196802929,20.9902,41888.0,41887.0,0.0479]
[1644196804787,20.9902,41888.0,41887.0,0.107589]
[1644196805285,20.9902,41888.0,41887.0,0.207589]
[1644196805789,20.9902,41888.0,41886.0,0.30424347]
[1644196805986,20.9902,41888.0,41887.0,0.04717935]
[1644196806185,20.9902,41888.0,41885.0,0.3373818]
[1644196806385,20.9902,41888.0,41886.0,0.0479]
[1644196806929,20.9902,41888.0,41887.0,0.658489]
[1644196807122,20.9902,41888.0,41887.0,0.756389]
[1644196807324,20.9902,41888.0,41887.0,0.806389]
[1644196807921,20.17061587,41888.0,41887.0,1.06172631]
[1644196808324,20.17061587,41888.0,41887.0,1.16172631]
[1644196808723,20.17061587,41888.0,41887.0,0.906389]
[1644196809122,20.17061587,41888.0,41887.0,0.901389]
[1644196809822,20.17061587,41888.0,41887.0,0.806389]
[1644196810021,20.17061587,41888.0,41887.0,0.15237561]
[1644196810422,20.17061587,41888.0,41887.0,0.05237561]
[1644196810676,20.17061587,41888.0,41887.0,0.11206461]
[1644196811076,20.17061587,41888.0,41887.0,0.16206461]
[1644196811276,20.17061587,41888.0,41887.0,0.0423687]
[1644196812977,20.17061587,41888.0,41887.0,0.0902687]
[1644196813180,20.17061587,41888.0,41887.0,0.1402687]
[1644196813387,20.17061587,41888.0,41887.0,0.42791496]
[1644196813878,20.17061587,41888.0,41887.0,0.57791496]
[1644196814524,20.17061587,41888.0,41887.0,0.83325227]
[1644196814923,20.17061587,41888.0,41887.0,1.43205227]
[1644196815523,20.17061587,41888.0,41887.0,1.22671496]
[1644196815927,20.17061587,41888.0,41887.0,0.19143333]
[1644196816124,20.17061587,41888.0,41887.0,0.49855399]
[1644196816322,20.17061587,41888.0,41887.0,0.24143333]
[1644196816525,20.17061587,41888.0,41887.0,0.60667898]
[1644196816724,20.17061587,41888.0,41887.0,0.30112233]
[1644196816923,20.17061587,41888.0,41887.0,0.60668166]
[1644196817323,19.62431774,41888.0,41887.0,0.45112233]
[1644196817524,18.94143124,41888.0,41887.0,0.75667238]
[1644196818024,18.121986,41888.0,41887.0,0.75667401]
[1644196818477,18.121986,41888.0,41887.0,0.60667401]
[1644196818674,18.121986,41888.0,41887.0,0.08396822]
[1644196819276,18.121986,41888.0,41886.0,0.21471238]
[1644196819480,18.121986,41888.0,41887.0,0.0479]
[1644196819676,18.121986,41888.0,41886.0,0.21471238]
[1644196819876,18.121986,41888.0,41887.0,0.107589]
[1644196820077,18.121986,41888.0,41886.0,0.0174636]
[1644196820275,18.121986,41888.0,41887.0,0.0479]
[1644196820475,18.121986,41888.0,41886.0,0.0174636]
[1644196820675,18.121986,41888.0,41887.0,0.0479]
[1644196821078,18.121986,41888.0,41887.0,0.90131148]
[1644196821278,18.121986,41888.0,41886.0,0.23683345]
[1644196821475,18.121986,41888.0,41887.0,0.107589]
[1644196821928,18.116986,41888.0,41887.0,0.107589]
[1644196823725,18.116986,41888.0,41887.0,0.706389]
[1644196823922,18.116986,41888.0,41887.0,0.806389]
[1644196825323,18.116986,41888.0,41887.0,0.706389]
[1644196825524,18.116986,41888.0,41887.0,0.107589]
[1644196825782,18.116986,41888.0,41887.0,0.059689]
[1644196827382,18.116986,41888.0,41887.0,0.109689]
[1644196827581,18.116986,41888.0,41887.0,0.159689]
[1644196827982,17.29749231,41888.0,41887.0,0.159689]
[1644196828284,17.29749231,41888.0,41887.0,0.207589]
[1644196828887,17.29749231,41888.0,41887.0,0.107589]
[1644196829184,17.29720497,41888.0,41887.0,0.107589]
[1644196830223,17.29720497,41888.0,41887.0,0.207589]
[1644196830423,17.29720497,41888.0,41887.0,0.157589]
[1644196831828,17.29720497,41888.0,41887.0,0.54141277]
[1644196832029,17.29720497,41888.0,41887.0,0.05]
[1644196832226,17.29720497,41888.0,41887.0,0.15]
[1644196832426,17.29720497,41888.0,41887.0,0.6396492]
[1644196833299,17.29720497,41888.0,41887.0,0.6896492]
[1644196833498,17.29720497,41888.0,41887.0,0.7493382]
[1644196834103,17.29720497,41888.0,41887.0,0.259689]
[1644196834300,17.29720497,41888.0,41887.0,0.207589]
[1644196835902,17.29720497,41888.0,41887.0,0.107589]
[1644196836204,17.29720497,41888.0,41887.0,0.059689]
[1644196837441,16.61419384,41888.0,41887.0,0.059689]
[1644196837638,16.61419384,41888.0,41886.0,0.119381]
[1644196838138,0.0181547,41893.0,41882.0,0.05]
[1644196838139,0.051,41900.0,41882.0,0.05]
[1644196838338,0.00025763,41888.0,41882.0,0.05]
[1644196838639,0.51490073,41889.0,41882.0,0.05]
[1644196839242,0.51490073,41889.0,41883.0,0.36001319]
[1644196839438,0.35918512,41898.0,41884.0,0.330142]
[1644196839439,0.00025763,41894.0,41884.0,0.330142]
[1644196839638,0.35918512,41898.0,41884.0,0.330142]
[1644196839639,0.00025763,41892.0,41884.0,0.61067188]
[1644196839839,0.00025763,41896.0,41885.0,0.059696]
[1644196840039,0.00025763,41898.0,41886.0,0.330142]
[1644196840238,0.0227296,41899.0,41883.0,0.94859479]
[1644196840442,0.18956753,41888.0,41884.0,0.330142]
[1644196840880,0.18956753,41888.0,41884.0,0.63619054]
[1644196841479,0.18956753,41888.0,41884.0,0.75557454]
[1644196841885,0.18956753,41888.0,41885.0,0.30604854]
[1644196842080,0.18956753,41888.0,41886.0,0.63619054]
[1644196843083,0.18956753,41888.0,41887.0,0.2552202]
[1644196843281,0.18956753,41888.0,41887.0,0.330142]
[1644196843485,0.18956753,41888.0,41887.0,0.5853622]
[1644196843683,0.18956753,41888.0,41887.0,0.330142]
[1644196844536,0.18956753,41888.0,41887.0,0.5853622]
[1644196844732,0.18956753,41888.0,41887.0,0.330142]
[1644196847834,0.18928019,41888.0,41887.0,0.330142]
[1644196848475,0.18928019,41888.0,41887.0,0.63619054]
[1644196849275,0.18928019,41888.0,41887.0,0.330142]
[1644196849479,0.48928019,41888.0,41886.0,0.25550686]
[1644196849679,0.29194074,41887.0,41883.0,0.25550686]
[1644196849877,0.29194074,41887.0,41882.0,0.25550686]
[1644196850075,0.29194074,41887.0,41883.0,0.25550686]
[1644196850279,0.29194074,41887.0,41881.0,0.25550686]
[1644196850280,0.23129381,41885.0,41881.0,0.25550686]
[1644196850577,0.39562561,41884.0,41879.0,0.25550686]
[1644196850776,0.05,41883.0,41877.0,0.25550686]
[1644196850975,0.0979,41883.0,41877.0,0.25550686]
[1644196851176,0.0979,41883.0,41876.0,0.25550686]
[1644196851380,0.05,41877.0,41874.0,0.02102048]
[1644196851577,0.55085348,41875.0,41874.0,0.02102048]
[1644196851776,0.55,41874.0,41871.0,0.00018103]
[1644196852032,0.55,41874.0,41868.0,0.00018103]
[1644196852033,0.282476,41873.0,41868.0,0.00018103]
[1644196852235,0.30942164,41872.0,41864.0,0.00018103]
[1644196852434,0.35732164,41872.0,41863.0,0.00018103]
[1644196852632,0.35732164,41872.0,41862.0,0.55697847]
[1644196852633,0.47679664,41872.0,41862.0,0.55697847]
[1644196853033,0.05,41871.0,41862.0,0.55697847]
[1644196853234,0.109738,41871.0,41862.0,0.55697847]
[1644196853435,0.24355512,41866.0,41862.0,0.25092993]
[1644196853833,0.24786245,41868.0,41862.0,0.25092993]
[1644196854036,0.24786245,41868.0,41862.0,0.00070279]
[1644196854536,0.05,41867.0,41862.0,0.00070279]
[1644196854935,0.26270982,41864.0,41862.0,0.00018103]
[1644196855236,0.059738,41866.0,41862.0,0.00052176]
[1644196855436,0.05,41867.0,41862.0,0.00070279]
[1644196856075,0.05,41867.0,41862.0,0.00018103]
[1644196856375,0.24033596,41866.0,41862.0,0.00052176]
[1644196856575,0.24033596,41866.0,41862.0,0.00070279]
[1644196856977,0.059734,41870.0,41862.0,0.00070279]
[1644196857178,0.35824932,41895.0,41862.0,0.00070279]
[1644196857179,0.1178,41877.0,41862.0,0.00070279]
[1644196857381,0.05,41873.0,41862.0,0.00018103]
[1644196857577,0.05,41875.0,41864.0,0.00049505]
[1644196857775,0.109724,41875.0,41864.0,0.00049505]
[1644196857979,0.24387816,41869.0,41864.0,0.00067608]
[1644196858276,0.15163218,41869.0,41864.0,0.00049505]
[1644196858478,0.15163218,41869.0,41863.0,0.00018103]
[1644196858678,0.15163218,41869.0,41862.0,0.059729]
[1644196858679,0.15163218,41869.0,41864.0,0.00049504]
[1644196859723,0.15163218,41869.0,41862.0,0.00018103]
[1644196859924,0.15163218,41869.0,41864.0,0.00049504]
[1644196860923,0.30245098,41875.0,41865.0,0.24348558]
[1644196861124,0.19058662,41877.0,41866.0,0.30917449]
[1644196861125,0.02118662,41877.0,41866.0,0.30917449]
[1644196861427,0.02118662,41877.0,41869.0,0.330142]
[1644196861625,0.02118662,41877.0,41873.0,0.330142]
[1644196861822,0.02118662,41877.0,41874.0,0.34858679]
[1644196862022,0.02118662,41877.0,41875.0,0.330142]
[1644196862226,0.02118662,41877.0,41875.0,0.0479]
[1644196862428,0.02118662,41877.0,41873.0,0.00050005]
[1644196862625,0.28020986,41878.0,41873.0,0.00050005]
[1644196863024,0.25230435,41879.0,41873.0,0.00050005]
[1644196863280,0.24930141,41881.0,41875.0,0.29270945]
[1644196863481,0.30640845,41885.0,41875.0,0.29270945]
[1644196863682,0.29070418,41889.0,41875.0,0.29270945]
[1644196863883,0.13458968,41890.0,41876.0,0.0479]
[1644196863884,0.02058968,41890.0,41876.0,0.0479]
[1644196864081,0.00025763,41889.0,41876.0,0.0479]
[1644196864281,0.00025763,41889.0,41877.0,0.330142]
[1644196864282,0.19375869,41883.0,41877.0,0.330142]
[1644196864483,0.43073968,41883.0,41877.0,0.0479]
[1644196864681,0.48073968,41883.0,41877.0,0.0479]
[1644196864882,0.48073968,41883.0,41878.0,0.00049887]
[1644196865485,0.00025763,41889.0,41879.0,0.05]
[1644196865687,0.00025763,41891.0,41884.0,0.05]
[1644196865885,0.00025763,41890.0,41884.0,0.05]
[1644196866088,0.00025763,41891.0,41884.0,0.05]
[1644196866285,0.00047227,41892.0,41884.0,0.05]
[1644196866485,0.00025763,41891.0,41886.0,0.25177723]
[1644196866684,0.00025763,41891.0,41886.0,0.24677723]